fUSD/lending_fUSD_20240425
["ID","MTS","AMOUNT","RATE_DAILY","PERIOD"]
[323522189,1714066252965,-150.0,0.00011939,2]
[323522190,1714066252975,-150.0,0.00011949,2]
[323522191,1714066252985,-150.0,0.00011976,2]
[323522192,1714066253000,-442.2361123,0.0001199,2]
[323522193,1714066253009,-608.293286,0.00011992,2]
[323522194,1714066253018,-774.3504598,0.00011992,2]
[323522195,1714066253027,-940.4076336,0.00011992,2]
[323522196,1714066253036,-1106.4648073,0.00011992,2]
[323522197,1714066253046,-1272.5219811,0.00011992,2]
[323522198,1714066253055,-1019.20801255,0.00011997,2]
[323522199,1714066253064,-5545.18226245,0.00011998,2]
[323522200,1714066253074,-4728.17005222,0.00011998,2]
[323522201,1714066253083,-1393.78652472,0.00011998,2]
[323522202,1714066253093,-151.0,0.00011998,2]
[323522203,1714066253102,-151.0,0.00011998,2]
[323522204,1714066253112,-151.0,0.00011998,2]
[323522205,1714066253121,-332.58115796,0.00011999,2]
[323522206,1714066253132,-121333.82748922,0.00012,2]
[323522207,1714066253648,-5214.39013985,0.00012,2]
[323522208,1714066253660,-215475.91043774,0.00012,2]
[323522209,1714066253672,-374.06351889,0.00012,2]
[323522210,1714066253682,-1486.4935766,0.00012,2]
[323522211,1714066253700,-945.992404,0.00012,2]
[323522212,1714066253712,-15691.4639555,0.00012,2]
[323522213,1714066253817,-500.0,0.00010958,2]
[323522214,1714066253826,-1089.36101398,0.00012,2]
[323522215,1714066253839,-42894.18765625,0.00012,2]
[323522216,1714066253850,-12351.7,0.00012,2]
[323522217,1714066253861,-671.95731408,0.00012,2]
[323522218,1714066253873,-63304.92410076,0.00012,2]
[323522219,1714066253891,-734.31122034,0.00012,2]
[323522220,1714066254185,-500.0,0.00011232,2]
[323522221,1714066254195,-500.0,0.00011506,2]
[323522222,1714066254205,-289.69,0.00011751,2]
[323522223,1714066254742,-5292.53507396,0.00011751,2]
[323522224,1714066254755,-500.0,0.0001178,2]
[323522225,1714066254767,-10147.82231908,0.000118,2]
[323522226,1714066254783,-1554.70179995,0.000118,2]
[323522227,1714066254812,-32592.07704358,0.000118,2]
[323522228,1714066254825,-406176.51950351,0.00012,2]
[323522229,1714066254854,-573.87265,0.00012,2]
[323522230,1714066254892,-32935.320011,0.00012,2]
[323522231,1714066254907,-6382.7,0.00012,2]
[323522232,1714066254933,-415.0266194,0.00012,2]
[323522233,1714066254948,-912.34002185,0.00012,2]
[323522234,1714066255370,-500.0,0.00010958,2]
[323522235,1714066255381,-500.0,0.00011232,2]
[323522236,1714066255394,-9885.30238,0.00012,2]
[323522237,1714066255409,-3138.05679187,0.00012,2]
[323522238,1714066255514,-302.09356369,0.00012,2]
[323522239,1714066255530,-1553.75,0.00012,2]
[323522240,1714066255553,-500.0,0.00010958,2]
[323522241,1714066255562,-439330.06295506,0.00012,2]
[323522242,1714066255612,-500.0,0.00010958,2]
[323522243,1714066255621,-1003.03897622,0.00012,2]
[323522244,1714066256434,-725.57999991,8.751e-05,2]
[323522245,1714066256453,-649.81000009,8.751e-05,2]
[323522246,1714066256463,-871.83841886,0.00010956,2]
[323522247,1714066256473,-257.32095588,0.00010957,2]
[323522248,1714066256486,-500.0,0.00010958,2]
[323522249,1714066256496,-500.0,0.00010958,2]
[323522250,1714066256504,-500.0,0.00010958,2]
[323522251,1714066256513,-1375.39,0.00011015,2]
[323522252,1714066256523,-183.26772688,0.0001123,2]
[323522253,1714066256533,-218.59,0.00011232,2]
[323522254,1714066256543,-500.0,0.00011232,2]
[323522255,1714066256553,-14284.61675454,0.00012,2]
[323522256,1714066256566,-604.54,0.00012,2]
[323522257,1714066256584,-682.36101224,0.00012,2]
[323522258,1714066256595,-1331.8735148,0.00012,2]
[323522259,1714066256606,-2734.71085841,0.00012,2]
[323522260,1714066256617,-909.18055416,0.00012,2]
[323522261,1714066256628,-997.4085,0.00012,2]
[323522262,1714066256639,-4460.89827688,0.00012,2]
[323522263,1714066256650,-3563.47145,0.00012,2]
[323522264,1714066256666,-5960.4558865,0.00012,2]
[323522265,1714066257295,19229.50000001,8.492e-05,2]
[323522267,1714066330311,943.34796342,8.492e-05,2]
[323522268,1714066346325,943.34796342,8.492e-05,2]
[323522269,1714066362319,943.34796342,8.492e-05,2]
[323522270,1714066382319,943.34796342,8.492e-05,2]
[323522271,1714066404323,721.7519829,8.492e-05,2]
[323522272,1714066590184,-152.0,0.00012659,3]
[323522273,1714066590221,-152.0,0.00012918,4]
[323522274,1714066590257,-152.0,0.00013176,5]
[323522275,1714066590282,-2960.61,0.0001337,10]
[323522276,1714066590318,-152.0,0.00013435,6]
[323522277,1714066590342,-4508.0,0.00013463,7]
[323522278,1714066590366,-152.0,0.00013694,7]
[323522279,1714066590391,-1000.0,0.00013698,5]
[323522280,1714066590412,-1000.0,0.00013698,5]
[323522281,1714066590435,-1000.83969856,0.00013698,5]
[323522282,1714066590460,-20000.0,0.00013698,5]
[323522283,1714066590481,-20000.0,0.00013698,5]
[323522284,1714066590503,-20000.0,0.00013698,5]
[323522285,1714066590525,-20000.0,0.00013698,5]
[323522286,1714066590548,-20000.0,0.00013698,5]
[323522287,1714066590570,-20000.0,0.00013698,5]
[323522288,1714066590593,-2002.55490191,0.00013698,5]
[323522289,1714066590700,-393.35370624,0.00013726,5]
[323522290,1714066590725,-393.35370624,0.00013781,5]
[323522291,1714066590751,-393.35370624,0.00013836,5]
[323522292,1714066590773,-393.35370624,0.00013918,5]
[323522293,1714066590795,-152.0,0.00013953,8]
[323522294,1714066590830,-152.0,0.00014212,9]
[323522295,1714066590866,-152.0,0.00014471,10]
[323522296,1714066590900,-152.0,0.00014729,11]
[323522297,1714066590932,-152.0,0.00014988,12]
[323522298,1714066590956,-293.7596628,0.00015,3]
[323522299,1714066590989,-152.0,0.00015247,13]
[323522300,1714066591022,-1530.0,0.000155,3]
[323522301,1714066591358,-152.0,0.00015506,14]
[323522302,1714066591392,-152.0,0.00015765,15]
[323522303,1714066591425,-1530.0,0.00016,3]
[323522304,1714066591449,-152.0,0.00016024,16]
[323522305,1714066591481,-152.0,0.00016282,17]
[323522306,1714066591512,-4508.0,0.00016463,7]
[323522307,1714066591535,-1530.0,0.000165,4]
[323522308,1714066591558,-152.0,0.00016541,18]
[323522309,1714066591588,-152.0,0.000168,19]
[323522310,1714066591615,-213.82453816,0.000168,5]
[323522311,1714066591647,-1530.0,0.00017,4]
[323522312,1714066591681,-1530.0,0.000175,5]
[323522313,1714066591715,-2960.61,0.00017853,10]
[323522314,1714066591740,-600.0,0.00018,19]
[323522315,1714066591763,-1142.18,0.00018,5]
[323522316,1714066591787,-1530.0,0.00018,5]
[323522317,1714066591817,-1530.0,0.000185,6]
[323522318,1714066591841,-17675.0,0.000187,5]
[323522319,1714066591868,-600.0,0.00019,20]
[323522320,1714066591893,-1530.0,0.00019,6]
[323522321,1714066591932,-7000.0,0.00019463,7]
[323522322,1714066591958,-1530.0,0.000195,7]
[323522323,1714066591982,-28702.50258393,0.0001955,7]
[323522324,1714066592005,-246.52,0.0001956,7]
[323522325,1714066592030,-150.5,0.0001957,15]
[323522326,1714066592053,-150.5,0.0001957,15]
[323522327,1714066592077,-150.5,0.0001958,15]
[323522328,1714066592108,-150.5,0.0001958,15]
[323522329,1714066592132,-268.78,0.0001958,15]
[323522330,1714066592157,-150.5,0.0001959,15]
[323522331,1714066592182,-181.59,0.0001959,15]
[323522332,1714066592205,-150.5,0.0001959,15]
[323522333,1714066592229,-150.5,0.0001959,15]
[323522334,1714066592253,-396.59230228,0.00019654,3]
[323522335,1714066592277,-342244.93302541,0.00019657,5]
[323522336,1714066592301,-150.5,0.0001978,7]
[323522337,1714066592326,-150.5,0.0001979,7]
[323522338,1714066592351,-202.84551372,0.0002,30]
[323522339,1714066592376,-600.0,0.0002,21]
[323522340,1714066592402,-1161.88018301,0.0002,4]
[323522341,1714066592427,-328.49433453,0.0002,4]
[323522342,1714066592454,-80000.0,0.0002,3]
[323522343,1714066592480,-1298.75738557,0.0002,30]
[323522344,1714066592503,-40000.0,0.0002,5]
[323522345,1714066592527,-4000.0,0.0002,4]
[323522346,1714066592550,-4000.0,0.0002,5]
[323522347,1714066592572,-1000.0,0.0002,3]
[323522348,1714066592596,-252.85259197,0.0002,10]
[323522349,1714066592621,-1530.0,0.0002,7]
[323522350,1714066592647,-1530.0,0.000205,8]
[323522351,1714066592672,-200.0,0.0002085,7]
[323522352,1714066592697,-20000.0,0.00021,3]
[323522353,1714066592720,-10025.0,0.00021,3]
[323522354,1714066592744,-1510.0958995,0.00021,15]
[323522355,1714066592767,-600.0,0.00021,22]
[323522356,1714066592791,-1530.0,0.00021,9]
[323522357,1714066592815,-150.0,0.00021051,4]
[323522358,1714066592840,-150.0,0.000215,3]
[323522359,1714066592864,-2712.683377,0.000215,9]
[323522360,1714066592889,-150.0,0.00021853,4]
[323522361,1714066592915,-4460.13037,0.00021918,7]
[323522362,1714066592948,-863.13362364,0.00022,7]
[323522363,1714066592982,-10019.38690014,0.00022,4]
[323522364,1714066593008,-151.11638046,0.00022,60]
[323522365,1714066593035,-600.0,0.00022,23]
[323522366,1714066593058,-861.51189095,0.00022,8]
[323522367,1714066593082,-150.0,0.00022,3]
[323522368,1714066593108,-2960.61,0.00022336,10]
[323522369,1714066593132,-1252.90856755,0.000225,15]
[323522370,1714066593156,-150.0,0.000225,3]
[323522371,1714066593181,-150.0,0.00022655,4]
[323522372,1714066593205,-151.0,0.0002274,7]
[323522373,1714066593229,-151.0,0.0002274,7]
[323522374,1714066593254,-151.0,0.0002274,7]
[323522375,1714066593277,-151.0,0.0002274,7]
[323522376,1714066593299,-151.0,0.0002274,7]
[323522377,1714066593323,-151.0,0.0002274,7]
[323522378,1714066593350,-151.0,0.0002274,7]
[323522379,1714066593376,-151.0,0.0002274,7]
[323522380,1714066593402,-151.0,0.0002274,7]
[323522381,1714066593429,-151.0,0.0002274,7]
[323522382,1714066593457,-173.741127,0.0002274,7]
[323522383,1714066593486,-500.0,0.00022889,20]
[323522384,1714066593512,-50000.0,0.00023,3]
[323522385,1714066593538,-10043.0,0.00023,3]
[323522386,1714066593565,-600.0,0.00023,24]
[323522387,1714066593588,-320.0,0.00023,10]
[323522388,1714066593614,-150.0,0.00023,3]
[323522389,1714066593642,-150.0,0.00023457,4]
[323522390,1714066593666,-150.0,0.000235,3]
[323522391,1714066593690,-500.0,0.0002372,7]
[323522392,1714066593711,-500.0,0.0002372,7]
[323522393,1714066593735,-500.0,0.0002372,7]
[323522394,1714066593762,-500.0,0.00023993,7]
[323522395,1714066593785,-500.0,0.00023993,7]
[323522396,1714066593811,-50000.0,0.00024,4]
[323522397,1714066593835,-16714.0,0.00024,3]
[323522398,1714066593860,-150.0,0.00024,4]
[323522399,1714066593885,-150.0,0.00024259,4]
[323522400,1714066594185,-500.0,0.00024267,7]
[323522401,1714066594209,-871.18,0.00024267,7]
[323522402,1714066594236,-150.0,0.000245,4]
[323522403,1714066594260,-500.0,0.0002454,7]
[323522404,1714066594285,-22884.35,0.00024576,5]
[323522405,1714066594310,-241.51,0.00024658,4]
[323522406,1714066594333,-382.562282,0.00024658,7]
[323522407,1714066594356,-382.562282,0.00024658,7]
[323522408,1714066594380,-382.562282,0.00024658,7]
[323522409,1714066594402,-382.562282,0.00024658,7]
[323522410,1714066594425,-382.562282,0.00024658,7]
[323522411,1714066594449,-2675.06328945,0.00024787,6]
[323522412,1714066594474,-15134.19789349,0.000248,7]
[323522413,1714066594497,-500.0,0.00024813,7]
[323522414,1714066594521,-158.799,0.0002486,4]
[323522415,1714066594546,-158.799,0.0002486,4]
[323522416,1714066594570,-158.8,0.0002486,4]
[323522417,1714066594594,-158.799,0.0002486,4]
[323522418,1714066594616,-158.8,0.0002486,4]
[323522419,1714066594639,-363.965826,0.00024875,7]
[323522420,1714066594674,-2364.403289,0.00024875,7]
[323522421,1714066594702,-7283.013118,0.00024875,7]
[323522422,1714066594726,-1390.634517,0.00024875,7]
[323522423,1714066594754,-302.0,0.00024972,4]
[323522424,1714066594820,-50000.0,0.00025,5]
[323522425,1714066594845,-17400.0,0.00025,5]
[323522426,1714066594870,-85489.86470806,0.00025,5]
[323522427,1714066594893,-1000.0,0.00025,5]
[323522428,1714066594917,-1441.00011627,0.00025,7]
[323522429,1714066594942,-600.0,0.00025,26]
[323522430,1714066594966,-1400.79092019,0.00025,30]
[323522431,1714066594991,-435.29429269,0.00025,6]
[323522432,1714066595020,-1000.0,0.00025,30]
[323522433,1714066595046,-153579.4,0.00025,4]
[323522434,1714066595074,-2016.55588765,0.00025,7]
[323522435,1714066595099,-500.0,0.00025,30]
[323522436,1714066595128,-150.0,0.00025,4]
[323522437,1714066595153,-150.0,0.0002506,4]
[323522438,1714066595179,-500.0,0.00025086,7]
[323522439,1714066595206,-500.0,0.00025099,3]
[323522440,1714066595231,-1000.0,0.00025099,3]
[323522441,1714066595257,-200.0,0.000251,10]
[323522442,1714066595283,-7120.43419596,0.00025108,3]
[323522443,1714066595311,-1013.42794558,0.00025111,30]
[323522444,1714066595336,-2138.67219803,0.00025111,7]
[323522445,1714066595361,-867.4889935,0.00025111,4]
[323522446,1714066595387,-171807.24263999,0.00025111,7]
[323522447,1714066595415,-500.0,0.00025111,30]
[323522448,1714066595440,-151.17903234,0.00025111,30]
[323522449,1714066595466,-1044.257,0.000252,120]
[323522450,1714066595493,-1000.0,0.00025234,11]
[323522451,1714066595519,-500.0,0.00025359,7]
[323522452,1714066595546,-604.0,0.00025392,7]
[323522453,1714066595572,-3814.54312797,0.000255,7]
[323522454,1714066595601,-300.0,0.000255,30]
[323522455,1714066595626,-300.0,0.000255,30]
[323522456,1714066595651,-300.0,0.000255,30]
[323522457,1714066595674,-300.0,0.000255,30]
[323522458,1714066595697,-300.0,0.000255,30]
[323522459,1714066595720,-300.0,0.000255,30]
[323522460,1714066595745,-300.0,0.000255,30]
[323522461,1714066595768,-300.0,0.000255,30]
[323522462,1714066595791,-355.0,0.000255,30]
[323522463,1714066595814,-300.0,0.000255,30]
[323522464,1714066595837,-394.0,0.000255,30]
[323522465,1714066595860,-528.0,0.000255,30]
[323522466,1714066595883,-300.0,0.000255,30]
[323522467,1714066595909,-300.0,0.000255,30]
[323522468,1714066595933,-300.0,0.000255,30]
[323522469,1714066595957,-300.0,0.000255,30]
[323522470,1714066595981,-300.0,0.000255,30]
[323522471,1714066596004,-502.0,0.000255,30]
[323522472,1714066596027,-820.0,0.000255,30]
[323522473,1714066596050,-307.0,0.000255,30]
[323522474,1714066596074,-150.0,0.000255,4]
[323522475,1714066596098,-150.0,0.000255,4]
[323522476,1714066596123,-150.0,0.000255,4]
[323522477,1714066596150,-500.0,0.00025633,7]
[323522478,1714066596175,-150.0,0.00025862,4]
[323522479,1714066596198,-500.0,0.00025906,7]
[323522480,1714066596226,-50000.0,0.00026,6]
[323522481,1714066596249,-20046.0,0.00026,7]
[323522482,1714066596274,-600.0,0.00026,27]
[323522483,1714066596297,-10000.0,0.00026,5]
[323522484,1714066596319,-1258.62,0.00026,3]
[323522485,1714066596343,-556.09,0.00026,10]
[323522486,1714066596367,-150.0,0.00026,4]
[323522487,1714066596391,-150.0,0.00026,4]
[323522488,1714066596414,-150.0,0.00026,4]
[323522489,1714066596438,-1208.0,0.00026035,30]
[323522490,1714066596461,-500.0,0.00026179,7]
[323522491,1714066596485,-500.0,0.00026452,7]
[323522492,1714066596523,-928.5,0.000265,3]
[323522493,1714066596550,-150.0,0.000265,5]
[323522494,1714066596574,-150.0,0.000265,5]
[323522495,1714066596598,-150.0,0.000265,5]
[323522496,1714066596625,-150.0,0.00026664,4]
[323522497,1714066596651,-2500.0,0.000268,5]
[323522498,1714066596674,-958.6,0.000268,3]
[323522499,1714066596699,-2960.61,0.00026819,10]
[323522500,1714066596724,-50000.0,0.00027,7]
[323522501,1714066596977,-188.6521928,0.00027,4]
[323522502,1714066597001,-2500.0,0.00027,5]
[323522503,1714066597024,-20000.0,0.00027,5]
[323522504,1714066597048,-1001.49299161,0.00027,18]
[323522505,1714066597071,-600.0,0.00027,28]
[323522506,1714066597094,-315.0,0.00027,4]
[323522507,1714066597118,-201.098608,0.00027,20]
[323522508,1714066597142,-150.0,0.00027,5]
[323522509,1714066597168,-150.0,0.00027,5]
[323522510,1714066597193,-150.0,0.00027,5]
[323522511,1714066597217,-8641.88,0.00027014,3]
[323522512,1714066597243,-2500.0,0.000271,5]
[323522513,1714066597268,-1176.56615883,0.000272,5]
[323522514,1714066597292,-426.77567418,0.0002739,20]
[323522515,1714066597315,-213.38783709,0.0002739,25]
[323522516,1714066597338,-213.38783709,0.0002739,30]
[323522517,1714066597360,-200.0,0.00027397,21]
[323522518,1714066597383,-212.16061844,0.00027397,21]
[323522519,1714066597407,-150.0,0.00027397,7]
[323522520,1714066597429,-150.0,0.00027397,7]
[323522521,1714066597453,-150.0,0.00027397,7]
[323522522,1714066597475,-150.0,0.00027397,7]
[323522523,1714066597498,-7652.070496,0.00027397,3]
[323522524,1714066597521,-550.0,0.00027397,7]
[323522525,1714066597543,-550.0,0.00027397,7]
[323522526,1714066597567,-550.0,0.00027397,7]
[323522527,1714066597590,-550.0,0.00027397,7]
[323522528,1714066597613,-550.0,0.00027397,7]
[323522529,1714066597636,-550.0,0.00027397,7]
[323522530,1714066597660,-550.0,0.00027397,7]
[323522531,1714066597683,-550.0,0.00027397,7]
[323522532,1714066597707,-550.0,0.00027397,7]
[323522533,1714066597730,-550.0,0.00027397,7]
[323522534,1714066597753,-550.0,0.00027397,7]
[323522535,1714066597778,-550.0,0.00027397,7]
[323522536,1714066597802,-550.0,0.00027397,7]
[323522537,1714066597827,-550.0,0.00027397,7]
[323522538,1714066597850,-550.0,0.00027397,7]
[323522539,1714066597873,-550.0,0.00027397,7]
[323522540,1714066597896,-550.0,0.00027397,7]
[323522541,1714066597920,-550.0,0.00027397,7]
[323522542,1714066597944,-550.0,0.00027397,7]
[323522543,1714066597968,-550.0,0.00027397,7]
[323522544,1714066597993,-150.0,0.00027466,7]
[323522545,1714066598016,-150.0,0.000275,5]
[323522546,1714066598040,-150.0,0.000275,5]
[323522547,1714066598063,-150.0,0.000275,5]
[323522548,1714066598089,-9307.2938188,0.00027972,90]
[323522549,1714066598115,-50000.0,0.00028,8]
[323522550,1714066598138,-600.0,0.00028,29]
[323522551,1714066598162,-1123.85,0.00028,3]
[323522552,1714066598185,-1085.66,0.00028,3]
[323522553,1714066598209,-150.0,0.00028,5]
[323522554,1714066598233,-150.0,0.00028,5]
[323522555,1714066598257,-150.0,0.00028,5]
[323522556,1714066598282,-50940.03935813,0.00028208,120]
[323522557,1714066598307,-150.0,0.00028267,7]
[323522558,1714066598331,-150.0,0.000285,5]
[323522559,1714066598354,-150.0,0.000285,5]
[323522560,1714066598377,-150.0,0.000285,5]
[323522561,1714066598404,-50000.0,0.00029,9]
[323522562,1714066598427,-20030.0,0.00029,5]
[323522563,1714066598451,-600.0,0.00029,30]
[323522564,1714066598475,-1069.5,0.00029,3]
[323522565,1714066598498,-150.0,0.00029,6]
[323522566,1714066598520,-150.0,0.00029,6]
[323522567,1714066598542,-150.0,0.00029,6]
[323522568,1714066598564,-150.0,0.00029069,7]
[323522569,1714066598587,-150.0,0.000295,6]
[323522570,1714066598611,-150.0,0.000295,6]
[323522571,1714066598635,-150.0,0.000295,6]
[323522572,1714066598658,-1588.407776,0.0002978,10]
[323522573,1714066598681,-1000.0,0.000298,10]
[323522574,1714066598704,-1000.0,0.0002982,10]
[323522575,1714066598726,-1000.0,0.0002984,10]
[323522576,1714066598751,-1000.0,0.0002986,10]
[323522577,1714066598773,-150.0,0.00029871,7]
[323522578,1714066598795,-1000.0,0.0002988,10]
[323522579,1714066598818,-4153.71567099,0.000299,4]
[323522580,1714066598840,-15050.48834969,0.000299,10]
[323522581,1714066598863,-1000.0,0.000299,10]
[323522582,1714066598885,-1000.0,0.0002992,10]
[323522583,1714066598909,-1000.0,0.0002994,10]
[323522584,1714066598931,-1000.0,0.0002996,10]
[323522585,1714066598953,-1000.0,0.0002998,10]
[323522586,1714066598978,-50000.0,0.0003,10]
[323522587,1714066599002,-405.90477619,0.0003,4]
[323522588,1714066599025,-19327.24766397,0.0003,4]
[323522589,1714066599048,-157.70459541,0.0003,4]
[323522590,1714066599072,-1057.25902856,0.0003,4]
[323522591,1714066599096,-418.575331,0.0003,3]
[323522592,1714066599121,-572.92490155,0.0003,7]
[323522594,1714066599144,-1356.40259837,0.0003,5]
[323522596,1714066599165,-500.0,0.0003,4]
[323522598,1714066599188,-569.66,0.0003,3]
[323522600,1714066599212,-300.0,0.0003,5]
[323522602,1714066599238,-15694.07961749,0.0003,4]
[323522604,1714066599260,-500.0,0.0003,7]
[323522606,1714066599282,-5780.93929916,0.0003,7]
[323522608,1714066599306,-9524.97589295,0.0003,7]
[323522610,1714066599329,-2000.0,0.0003,15]
[323522612,1714066599352,-2000.0,0.0003,14]
[323522614,1714066599374,-1300.0,0.0003,20]
[323522616,1714066599397,-600.0,0.0003,31]
[323522625,1714066599579,-420.4979367,0.0003,30]
[323522627,1714066599601,-500.0,0.0003,30]
[323522629,1714066599623,-6508.34388678,0.0003,30]
[323522653,1714066601084,-382.562282,0.00024658,7]
[323522654,1714066601107,-382.562282,0.00024658,7]
[323522655,1714066601137,-382.562282,0.00024658,7]
[323522656,1714066601161,-382.562282,0.00024658,7]
[323522657,1714066601185,-382.562282,0.00024658,7]
[323522658,1714066601208,-382.562282,0.00024658,7]
[323522659,1714066601231,-382.562282,0.00024658,7]
[323522660,1714066601256,-382.562282,0.00024658,7]
[323522661,1714066601279,-382.562282,0.00024658,7]
[323522662,1714066601300,-382.562282,0.00024658,7]
[323522663,1714066601322,-382.562282,0.00024658,7]
[323522664,1714066601345,-382.562282,0.00024658,7]
[323522665,1714066601422,-64285.89147197,0.0003,30]
[323522666,1714066601445,-62576.47,0.0003,30]
[323522667,1714066601468,-547.0,0.0003,120]
[323522668,1714066601491,-400.88,0.0003,10]
[323522669,1714066601515,-682.44397061,0.0003,4]
[323522670,1714066601538,-37006.24472616,0.0003,7]
[323522671,1714066601561,-1000.0,0.0003,11]
[323522672,1714066601583,-150.0,0.0003,6]
[323522673,1714066601606,-150.0,0.0003,6]
[323522674,1714066601628,-10893.0,0.0003,8]
[323522675,1714066601650,-150.0,0.0003,6]
[323522676,1714066601675,-150.0,0.00030673,7]
[323522677,1714066601699,-275.96480726,0.000307,4]
[323522678,1714066601722,-282.5938334,0.000308,3]
[323522679,1714066601747,-250.0,0.000308,30]
[323522680,1714066601771,-50000.0,0.00031,11]
[323522681,1714066601795,-12595.90224062,0.00031,3]
[323522682,1714066601819,-600.0,0.00031,32]
[323522683,1714066601842,-1250.0,0.00031,31]
[323522684,1714066601866,-2960.61,0.00031303,10]
[323522685,1714066601890,-18251.10791584,0.0003143,4]
[323522686,1714066601913,-150.0,0.00031475,7]
[323522687,1714066601938,-673.0,0.00031534,120]
[323522688,1714066601961,-2416.0,0.00031535,120]
[323522689,1714066602199,-126679.42314398,0.000319,7]
[323522690,1714066602228,-50000.0,0.00032,12]
[323522691,1714066602252,-332.37940372,0.00032,4]
[323522692,1714066602276,-500.0,0.00032,3]
[323522693,1714066602299,-207.000364,0.00032,4]
[323522695,1714066602321,-500.0,0.00032,7]
[323522696,1714066602343,-600.0,0.00032,33]
[323522697,1714066602365,-500.0,0.00032,30]
[323522698,1714066602388,-782.63223116,0.00032,120]
[323522699,1714066602411,-500.0,0.00032,120]
[323522700,1714066602434,-282.67,0.000321,7]
[323522701,1714066602456,-500.0,0.000321,7]
[323522702,1714066602481,-1000.0,0.000321,7]
[323522703,1714066602503,-1000.0,0.000321,7]
[323522704,1714066602526,-1000.0,0.000321,7]
[323522705,1714066602548,-1000.0,0.000321,7]
[323522706,1714066602572,-200.0,0.0003215,60]
[323522707,1714066602597,-150.0,0.00032276,7]
[323522708,1714066602625,-13087.5036108,0.000329,30]
[323522709,1714066602654,-1351.37076266,0.000329,30]
[323522710,1714066602678,-1022.0,0.00032918,6]
[323522711,1714066602703,-5203.0,0.00032975,6]
[323522712,1714066602731,-50000.0,0.00033,3]
[323522713,1714066602756,-50000.0,0.00033,13]
[323522714,1714066602783,-5000.0,0.00033,3]
[323522715,1714066602810,-555.27214801,0.00033,120]
[323522716,1714066602833,-157.38959855,0.00033,120]
[323522717,1714066602856,-600.0,0.00033,34]
[323522718,1714066602879,-1050.0,0.00033,33]
[323522719,1714066602904,-5015.80309407,0.00033,14]
[323522720,1714066602929,-1000000.0,0.00033,20]
[323522721,1714066602954,-408935.69929319,0.00033,20]
[323522723,1714066764711,1311.45,8.219e-05,2]
[323522724,1714066908944,176.59,7.788e-05,2]
[323522726,1714067208720,20176.31019024,7.788e-05,2]
[323522727,1714067214135,288.71913724,7.788e-05,2]
[323522728,1714067215854,155.0,7.788e-05,2]
[323522729,1714067219734,546.03515344,6.23e-05,2]
[323522730,1714067224797,608.3882526,7.788e-05,2]
[323522731,1714067226707,20176.31019024,7.788e-05,2]
[323522732,1714067235582,252.29169346,7.788e-05,2]
[323522733,1714067240757,608.3882526,7.788e-05,2]
[323522734,1714067241665,183.24808369,6.23e-05,2]
[323522735,1714067247192,20176.31019024,7.788e-05,2]
[323522736,1714067257845,372543.70621856,7.788e-05,2]
[323522737,1714067257869,173802.13022181,7.788e-05,2]